{"text_format":"3","workbook":"xlsx","n_sheets":1,"sheets":["Könyvtári kölcsönzés"],"not_rendered":{"defined_names":4},"read":"whole","date_system":"1900"}

{"sheet":"Könyvtári kölcsönzés","index":0,"n_rows":9,"n_cols":8,"rows_kept":9,"merged":[[0,1,0,4],[0,5,0,6]]}
[null,"Könyvtári kölcsönzés nyilvántartási lapja",{"$nulls":3},"HATÁRIDŐIG HÁTRALÉVŐ NAPOK SZÁMA: ",null,10]
["Késedelmes","TANULÓ","OLVASÓ E-MAIL-CÍME","OLVASÓ TELEFONSZÁMA","KÖNYV CÍME","KÖLCSÖNZÉS DÁTUMA","VISSZADÁS DÁTUMA","NAP"]
[{"$f":"IFERROR(((Könyvek[[#This Row],[KÖLCSÖNZÉS DÁTUMA]]+NapiKésedelmiDíj)<TODAY())*(LEN(Könyvek[[#This Row],[VISSZADÁS DÁTUMA]])=0)*(LEN(Könyvek[[#This Row],[KÖLCSÖNZÉS DÁTUMA]])>0),0)","v":0},"Kovács Barbara","valaki@example.com","555-0100","Nyár a szigeten",{"$f":"DATE(YEAR(TODAY()),1,14)","v":"2018-01-14"},{"$f":"DATE(YEAR(TODAY()),1,21)","v":"2018-01-21"},{"$f":"IFERROR(IF(Könyvek[[#This Row],[VISSZADÁS DÁTUMA]]=\"\",IF(Könyvek[[#This Row],[KÖLCSÖNZÉS DÁTUMA]]<>\"\", TODAY()-Könyvek[[#This Row],[KÖLCSÖNZÉS DÁTUMA]],\"\"),Könyvek[[#This Row],[VISSZADÁS DÁTUMA]]-Könyvek[[#This Row],[KÖLCSÖNZÉS DÁTUMA]]), \"\")","v":7}]
[{"$f":"IFERROR(((Könyvek[[#This Row],[KÖLCSÖNZÉS DÁTUMA]]+NapiKésedelmiDíj)<TODAY())*(LEN(Könyvek[[#This Row],[VISSZADÁS DÁTUMA]])=0)*(LEN(Könyvek[[#This Row],[KÖLCSÖNZÉS DÁTUMA]])>0),0)","v":0},"Fehér Zsolt","valaki@example.com","555-0101","Tüskevár",{"$f":"DATE(YEAR(TODAY()),2,15)","v":"2018-02-15"},{"$f":"DATE(YEAR(TODAY()),2,18)","v":"2018-02-18"},{"$f":"IFERROR(IF(Könyvek[[#This Row],[VISSZADÁS DÁTUMA]]=\"\",IF(Könyvek[[#This Row],[KÖLCSÖNZÉS DÁTUMA]]<>\"\", TODAY()-Könyvek[[#This Row],[KÖLCSÖNZÉS DÁTUMA]],\"\"),Könyvek[[#This Row],[VISSZADÁS DÁTUMA]]-Könyvek[[#This Row],[KÖLCSÖNZÉS DÁTUMA]]), \"\")","v":3}]
[{"$f":"IFERROR(((Könyvek[[#This Row],[KÖLCSÖNZÉS DÁTUMA]]+NapiKésedelmiDíj)<TODAY())*(LEN(Könyvek[[#This Row],[VISSZADÁS DÁTUMA]])=0)*(LEN(Könyvek[[#This Row],[KÖLCSÖNZÉS DÁTUMA]])>0),0)","v":0},"Fodor Mihály","valaki@example.com","555-0102","A Pál utcai fiúk",{"$f":"DATE(YEAR(TODAY()),2,17)","v":"2018-02-17"},{"$f":"DATE(YEAR(TODAY()),2,22)","v":"2018-02-22"},{"$f":"IFERROR(IF(Könyvek[[#This Row],[VISSZADÁS DÁTUMA]]=\"\",IF(Könyvek[[#This Row],[KÖLCSÖNZÉS DÁTUMA]]<>\"\", TODAY()-Könyvek[[#This Row],[KÖLCSÖNZÉS DÁTUMA]],\"\"),Könyvek[[#This Row],[VISSZADÁS DÁTUMA]]-Könyvek[[#This Row],[KÖLCSÖNZÉS DÁTUMA]]), \"\")","v":5}]
[{"$f":"IFERROR(((Könyvek[[#This Row],[KÖLCSÖNZÉS DÁTUMA]]+NapiKésedelmiDíj)<TODAY())*(LEN(Könyvek[[#This Row],[VISSZADÁS DÁTUMA]])=0)*(LEN(Könyvek[[#This Row],[KÖLCSÖNZÉS DÁTUMA]])>0),0)","v":0},"Hegedűs Attila","valaki@example.com","555-0103","A koppányi aga testamentuma",{"$f":"DATE(YEAR(TODAY()),2,17)","v":"2018-02-17"},{"$f":"DATE(YEAR(TODAY()),2,25)","v":"2018-02-25"},{"$f":"IFERROR(IF(Könyvek[[#This Row],[VISSZADÁS DÁTUMA]]=\"\",IF(Könyvek[[#This Row],[KÖLCSÖNZÉS DÁTUMA]]<>\"\", TODAY()-Könyvek[[#This Row],[KÖLCSÖNZÉS DÁTUMA]],\"\"),Könyvek[[#This Row],[VISSZADÁS DÁTUMA]]-Könyvek[[#This Row],[KÖLCSÖNZÉS DÁTUMA]]), \"\")","v":8}]
[{"$f":"IFERROR(((Könyvek[[#This Row],[KÖLCSÖNZÉS DÁTUMA]]+NapiKésedelmiDíj)<TODAY())*(LEN(Könyvek[[#This Row],[VISSZADÁS DÁTUMA]])=0)*(LEN(Könyvek[[#This Row],[KÖLCSÖNZÉS DÁTUMA]])>0),0)","v":0},"Somogyi Etelka","valaki@example.com","555-0104","Egri csillagok",{"$f":"DATE(YEAR(TODAY()),2,18)","v":"2018-02-18"},{"$f":"DATE(YEAR(TODAY()),2,28)","v":"2018-02-28"},{"$f":"IFERROR(IF(Könyvek[[#This Row],[VISSZADÁS DÁTUMA]]=\"\",IF(Könyvek[[#This Row],[KÖLCSÖNZÉS DÁTUMA]]<>\"\", TODAY()-Könyvek[[#This Row],[KÖLCSÖNZÉS DÁTUMA]],\"\"),Könyvek[[#This Row],[VISSZADÁS DÁTUMA]]-Könyvek[[#This Row],[KÖLCSÖNZÉS DÁTUMA]]), \"\")","v":10}]
[{"$f":"IFERROR(((Könyvek[[#This Row],[KÖLCSÖNZÉS DÁTUMA]]+NapiKésedelmiDíj)<TODAY())*(LEN(Könyvek[[#This Row],[VISSZADÁS DÁTUMA]])=0)*(LEN(Könyvek[[#This Row],[KÖLCSÖNZÉS DÁTUMA]])>0),0)","v":1},"Orosz Fanni","valaki@example.com","555-0105","Narnia Krónikái",{"$f":"DATE(YEAR(TODAY()),1,23)","v":"2018-01-23"},null,{"$f":"IFERROR(IF(Könyvek[[#This Row],[VISSZADÁS DÁTUMA]]=\"\",IF(Könyvek[[#This Row],[KÖLCSÖNZÉS DÁTUMA]]<>\"\", TODAY()-Könyvek[[#This Row],[KÖLCSÖNZÉS DÁTUMA]],\"\"),Könyvek[[#This Row],[VISSZADÁS DÁTUMA]]-Könyvek[[#This Row],[KÖLCSÖNZÉS DÁTUMA]]), \"\")","v":163}]
[{"$f":"IFERROR(((Könyvek[[#This Row],[KÖLCSÖNZÉS DÁTUMA]]+NapiKésedelmiDíj)<TODAY())*(LEN(Könyvek[[#This Row],[VISSZADÁS DÁTUMA]])=0)*(LEN(Könyvek[[#This Row],[KÖLCSÖNZÉS DÁTUMA]])>0),0)","v":0},"Szilágyi Zsuzsanna","valaki@example.com","555-0106","A Négyszögletű Kerek Erdő",{"$f":"TODAY()","v":"2018-07-05"},null,{"$f":"IFERROR(IF(Könyvek[[#This Row],[VISSZADÁS DÁTUMA]]=\"\",IF(Könyvek[[#This Row],[KÖLCSÖNZÉS DÁTUMA]]<>\"\", TODAY()-Könyvek[[#This Row],[KÖLCSÖNZÉS DÁTUMA]],\"\"),Könyvek[[#This Row],[VISSZADÁS DÁTUMA]]-Könyvek[[#This Row],[KÖLCSÖNZÉS DÁTUMA]]), \"\")","v":0}]